fUSD/lending_fUSD_20251227
["ID","MTS","AMOUNT","RATE_DAILY","PERIOD"]
[399911693,1766860237907,-500.0,0.00016899,2]
[399911695,1766860237917,-500.0,0.00016899,2]
[399911697,1766860237928,-500.0,0.00016899,2]
[399911700,1766860237938,-500.0,0.00016899,2]
[399911702,1766860237947,-115275.70490194,0.000169,2]
[399911763,1766860239489,-103082.86319806,0.000169,2]
[399911764,1766860239499,-151.61798797,0.000169,2]
[399911765,1766860239510,-734.66435787,0.000169,2]
[399911766,1766860239520,-175.35993178,0.000169,2]
[399911767,1766860239531,-1911.6120697,0.000169,2]
[399911768,1766860239541,-805.0,0.00017,2]
[399911769,1766860239551,-126105.60258252,0.00017,2]
[399911770,1766860239564,-2530.22766939,0.00017,2]
[399911771,1766860239576,-324.7149346,0.00017,2]
[399911772,1766860239588,-265.1286,0.00017,2]
[399911773,1766860239599,-9006.5371147,0.00017,2]
[399911774,1766860239615,-1723.07381486,0.00017,2]
[399911775,1766860239627,-1279.2779985,0.00017,2]
[399911776,1766860239638,-424.34554978,0.00017,2]
[399911778,1766860239715,-2919.09164166,0.00017,2]
[399911780,1766860239771,-2858818.40685799,0.00017,2]
[399911796,1766860242890,-3410.51349519,0.00017,2]
[399911798,1766860242947,-1325.45,0.00017,2]
[399911799,1766860242958,-254.39513532,0.00017,2]
[399911800,1766860243004,-836.99523524,0.00017,2]
[399911801,1766860243600,-423.95581672,0.00017,2]
[399911821,1766860245399,-151.0,0.00016619,2]
[399911823,1766860245409,-3010.03354554,0.00016673,2]
[399911828,1766860245454,-449.96645446,0.00016673,2]
[399911830,1766860245463,-50.03354554,0.00017,2]
[399911841,1766860245566,-37043.84372399,0.00017,2]
[399911843,1766860245578,-778.86652638,0.00017,2]
[399911846,1766860245623,-2104.68097424,0.00017,2]
[399911847,1766860245633,-250.0,0.00017,2]
[399911848,1766860245642,-150.0,0.00017,2]
[399911849,1766860245652,-1637.14865216,0.00017,2]
[399911850,1766860245662,-150.0,0.00017,2]
[399911851,1766860245672,-585.64725075,0.00017,2]
[399911852,1766860245685,-4180.2989766,0.00017,2]
[399911857,1766860245912,-40404.95478861,0.00017,2]
[399911858,1766860245926,-308.93545843,0.00017,2]
[399911936,1766861431523,-2535.48197541,0.00016155,2]
[399911937,1766861431536,-704.51802459,0.00016155,2]
[399911939,1766861431546,-197.28876403,0.00016176,2]
[399911940,1766861431555,-493.7,0.00016277,2]
[399911941,1766861431566,-197.28876401,0.00016292,2]
[399911942,1766861431576,-150.0,0.0001633,2]
[399911943,1766861431586,-1200.0,0.00016433,2]
[399911944,1766861431596,-3222.48457175,0.00016434,2]
[399911945,1766861431609,-3528.14577167,0.00016434,2]
[399911946,1766861431625,-17765.03840616,0.00016434,2]
[399911947,1766861431637,-345.51780687,0.00016434,2]
[399911948,1766861431650,-303.63741467,0.00016434,2]
[399911949,1766861431686,-2238.41975202,0.00016434,2]
[399911950,1766861431699,-4625.7895929,0.00016434,2]
[399912011,1766861437536,-197.28876401,0.00016407,2]
[399912012,1766861437555,-673.77123599,0.00016434,2]
[399912013,1766861437588,-2345.58702359,0.00016434,2]
[399912014,1766861437601,-2553.98606414,0.00016434,2]
[399912017,1766861437642,-539.93551002,0.00016434,2]
[399912018,1766861437699,-52946.13405022,0.00016434,2]
[399912019,1766861437708,-1500.0,0.00016507,2]
[399912020,1766861437718,-181.0,0.00016533,2]
[399912021,1766861437727,-151.0,0.00016597,2]
[399912022,1766861437737,-151.0,0.00016598,2]
[399912023,1766861437746,-151.0,0.000166,2]
[399912024,1766861437756,-1457.273,0.00016677,2]
[399912025,1766861437765,-1610.0,0.00016683,2]
[399912026,1766861437776,-3460.0,0.00016683,2]
[399912027,1766861437786,-4801.0,0.00016683,2]
[399912028,1766861437795,-6528.0,0.00016683,2]
[399912029,1766861437805,-10956.36469835,0.00016695,2]
[399912031,1766861437815,-151.61798797,0.000169,2]
[399912034,1766861437825,-489.77623858,0.000169,2]
[399912036,1766861437835,-642.45112104,0.000169,2]
[399912038,1766861437845,-175.35993178,0.000169,2]
[399912039,1766861437855,-642.0,0.00017,2]
[399912041,1766861437865,-696.022972,0.00017,2]
[399912062,1766861439804,-374204.14292313,0.00017,2]
[399912063,1766861439814,-1105353.74543919,0.00017,2]
[399912064,1766861439824,-151.0,0.00017,2]
[399912065,1766861439834,-859733.73174881,0.00017,2]
[399912066,1766861439844,-519375.78674686,0.00017,2]
[399912067,1766861439960,-105039.70263455,0.00017,2]
[399912068,1766861439972,-618.77200021,0.00017,2]
[399912069,1766861439984,-371.0584105,0.00017,2]
[399912096,1766861445486,-48263.9143891,0.00017,2]
[399912097,1766861445498,-867.26068256,0.00017,2]
[399912098,1766861445539,-13220.67230969,0.00017,2]
[399912099,1766861445551,-189897.51744614,0.00017,2]
[399912100,1766861445563,-1038.39988,0.00017,2]
[399912101,1766861445594,-445002.41299248,0.00017,2]
[399912102,1766861445606,-251834.28231963,0.00017,2]
[399912103,1766861445701,-11456.36469835,0.00017,2]
[399912104,1766861445913,-8212.38003152,0.00017,2]
[399912353,1766862631671,-359.01,0.00013699,2]
[399912354,1766862631682,-368.64809693,0.00015452,2]
[399912355,1766862631723,-133.35190307,0.00015452,2]
[399912356,1766862631733,-166.66,0.00015837,2]
[399912357,1766862631743,-166.66,0.00016171,2]
[399912358,1766862631752,-14022.23037894,0.00016334,2]
[399912359,1766862631831,-906.0,0.00016334,2]
[399912360,1766862631844,-717.92687088,0.00016334,2]
[399912404,1766862637771,-447.66174487,0.00016334,2]
[399912405,1766862637784,-922.64,0.00016334,2]
[399912406,1766862637796,-753.25136983,0.00016334,2]
[399912407,1766862637822,-865.42829817,0.00016334,2]
[399912408,1766862637834,-2744.25566807,0.00016334,2]
[399912409,1766862637846,-1477.52128515,0.00016334,2]
[399912410,1766862637857,-14333.4027118,0.00016334,2]
[399912411,1766862637877,-688.30896852,0.00016334,2]
[399912412,1766862637889,-523.17578631,0.00016334,2]
[399912413,1766862637900,-385.09999523,0.00016334,2]
[399912414,1766862637912,-478.8554117,0.00016334,2]
[399912415,1766862637932,-64993.73801053,0.00016334,2]
[399912416,1766862637944,-151.0,0.00016344,2]
[399912417,1766862637955,-151.0,0.00016347,2]
[399912418,1766862637965,-151.0,0.00016355,2]
[399912419,1766862637976,-2989.24,0.00016438,2]
[399912420,1766862637988,-166.66,0.00016504,2]
[399912421,1766862637998,-3455.0,0.00016683,2]
[399912422,1766862638007,-1165.819,0.00016692,2]
[399912423,1766862638019,-166.66,0.00016837,2]
[399912424,1766862638028,-151.61798797,0.000169,2]
[399912425,1766862638038,-214.15037368,0.000169,2]
[399912427,1766862638047,-838.85916482,0.000169,2]
[399912429,1766862638057,-416.2457561,0.00016999,2]
[399912431,1766862638067,-500.0,0.00016999,2]
[399912433,1766862638083,-500.0,0.00016999,2]
[399912436,1766862638093,-500.0,0.00016999,2]
[399912438,1766862638102,-500.0,0.00016999,2]
[399912440,1766862638112,-500.0,0.00016999,2]
[399912442,1766862638122,-278.73717479,0.00016999,2]
[399912444,1766862638132,-500.0,0.00016999,2]
[399912446,1766862638142,-500.0,0.00016999,2]
[399912448,1766862638151,-4160.12562986,0.00017,2]
[399912450,1766862638168,-4125.73666421,0.00017,2]
[399912540,1766862639927,-882.91922551,0.00017,2]
[399912546,1766862639982,-102445.17655268,0.00017,2]
[399912553,1766862640037,-931.76,0.00017,2]
[399912571,1766862640199,-618553.36406895,0.00017,2]
[399912573,1766862640209,-1257.0,0.00017,2]
[399912575,1766862640219,-1257.0,0.00017,2]
[399912577,1766862640229,-151.0,0.00017,2]
[399912579,1766862640239,-1000.0,0.00017,2]
[399912581,1766862640249,-1257.0,0.00017,2]
[399912583,1766862640259,-1253.0,0.00017,2]
[399912585,1766862640268,-153.0,0.00017,2]
[399912587,1766862640280,-153.0,0.00017,2]
[399912589,1766862640289,-153.0,0.00017,2]
[399912591,1766862640299,-153.0,0.00017,2]
[399912593,1766862640309,-153.0,0.00017,2]
[399912595,1766862640323,-153.0,0.00017,2]
[399912596,1766862640333,-153.0,0.00017,2]
[399912597,1766862640342,-153.0,0.00017,2]
[399912598,1766862640351,-153.0,0.00017,2]
[399912599,1766862640362,-153.0,0.00017,2]
[399912600,1766862640372,-153.0,0.00017,2]
[399912601,1766862640382,-153.0,0.00017,2]
[399912602,1766862640391,-153.0,0.00017,2]
[399912603,1766862640401,-153.0,0.00017,2]
[399912605,1766862640411,-153.0,0.00017,2]
[399912607,1766862640421,-153.0,0.00017,2]
[399912608,1766862640431,-153.0,0.00017,2]
[399912610,1766862640440,-153.0,0.00017,2]
[399912612,1766862640449,-153.0,0.00017,2]
[399912614,1766862640467,-153.0,0.00017,2]
[399912616,1766862640478,-153.0,0.00017,2]
[399912617,1766862640488,-153.0,0.00017,2]
[399912619,1766862640497,-153.0,0.00017,2]
[399912621,1766862640507,-153.0,0.00017,2]
[399912623,1766862640517,-153.0,0.00017,2]
[399912625,1766862640526,-153.0,0.00017,2]
[399912627,1766862640536,-153.0,0.00017,2]
[399912629,1766862640545,-153.0,0.00017,2]
[399912631,1766862640555,-153.0,0.00017,2]
[399912633,1766862640566,-153.0,0.00017,2]
[399912635,1766862640576,-153.0,0.00017,2]
[399912637,1766862640586,-153.0,0.00017,2]
[399912639,1766862640596,-153.0,0.00017,2]
[399912642,1766862640606,-153.0,0.00017,2]
[399912644,1766862640616,-153.0,0.00017,2]
[399912646,1766862640625,-153.0,0.00017,2]
[399912648,1766862640635,-298.38261487,0.00017,2]
[399912650,1766862640645,-250.0,0.00017,2]
[399912652,1766862640655,-345.98643763,0.00017024,2]
[399912654,1766862640664,-200.0,0.00017062,2]
[399912656,1766862640673,-400.0,0.000171,2]
[399912658,1766862640683,-166.66,0.00017171,2]
[399912660,1766862640697,-550.27,0.00017324,2]
[399912662,1766862640707,-166.66,0.00017504,2]
[399912664,1766862640717,-166.7,0.00017543,2]
[399912666,1766862640726,-159.1,0.0001759,2]
[399912668,1766862640736,-150.0,0.00017672,2]
[399912669,1766862640746,-1000.0,0.00018082,2]
[399912670,1766862640755,-823.06525097,0.00018143,2]
[399912671,1766862640765,-493.7,0.00018311,2]
[399912672,1766862640776,-1000.0,0.00018687,2]
[399912673,1766862640787,-1000.0,0.0001876,2]
[399912674,1766862640796,-151.0,0.00018906,2]
[399912675,1766862640806,-515.0,0.00019,2]
[399912676,1766862640816,-2372.79854907,0.00019,2]
[399912677,1766862640825,-143972.8973496,0.00019,2]
[399912678,1766862640836,-710.39799422,0.00019,2]
[399912679,1766862640845,-300.0,0.00019,2]
[399912680,1766862640855,-1099.0,0.00019098,2]
[399912681,1766862640865,-150.0,0.00019178,2]
[399912682,1766862640875,-214.03542937,0.000192,7]
[399912683,1766862640885,-1000.0,0.00019438,2]
[399912684,1766862640894,-238.09,0.00019471,2]
[399912685,1766862640904,-150.0,0.0002,2]
[399912686,1766862640913,-200.0,0.0002,2]
[399912688,1766862640923,-163.74942608,0.0002,2]
[399912689,1766862640933,-10000.0,0.0002,2]
[399912690,1766862640943,-37123.06333064,0.0002,5]
[399912691,1766862640953,-1099.0,0.00020103,2]
[399912692,1766862640964,-1000.0,0.00020116,2]
[399912693,1766862640973,-359.01,0.00020187,2]
[399912694,1766862640983,-493.7,0.00020346,2]
[399912695,1766862640994,-192.47,0.00020548,2]
[399912696,1766862641293,-1000.0,0.000207,2]
[399912697,1766862641309,-1000.0,0.00020763,2]
[399912698,1766862641320,-1000.0,0.00020795,2]
[399912699,1766862641329,-607.60027236,0.000209,30]
[399912700,1766862641339,-151.0,0.00020916,2]
[399912701,1766862641351,-484.36888927,0.00021,2]
[399912702,1766862641361,-350.0,0.00021,2]
[399912703,1766862641371,-216.59529021,0.0002111,2]
[399912704,1766862641380,-1099.0,0.00021161,2]
[399912705,1766862641390,-8336.78,0.00021757,2]
[399912706,1766862641400,-299.99,0.00021757,7]
[399912707,1766862641410,-150.99,0.00021757,2]
[399912708,1766862641419,-5000.0,0.00021918,2]
[399912709,1766862641430,-220.34,0.00021918,30]
[399912710,1766862641441,-615.43392194,0.00021918,2]
[399912711,1766862641450,-500.0,0.00021918,2]
[399912712,1766862641460,-308.7869659,0.00022,30]
[399912713,1766862641469,-1099.0,0.00022275,2]
[399912714,1766862641478,-493.7,0.0002238,2]
[399912715,1766862641489,-10728.0,0.000226,20]
[399912716,1766862641499,-1000.0,0.00022839,2]
[399912717,1766862641509,-151.0,0.00022925,2]
[399912718,1766862641518,-400.0,0.00023,2]
[399912719,1766862641528,-1099.0,0.00023447,2]
[399912720,1766862641538,-550.27,0.00024253,2]
[399912721,1766862641548,-493.7,0.00024415,2]
[399912722,1766862641557,-1000.0,0.00024658,2]
[399912723,1766862641567,-1099.0,0.00024681,2]
[399912724,1766862641576,-11621.58692,0.000249,3]
[399912725,1766862641587,-1000.0,0.00024915,2]
[399912726,1766862641597,-151.0,0.00024934,2]
[399912727,1766862641607,-415.75906054,0.00025,3]
[399912728,1766862641617,-150.0,0.00025,2]
[399912729,1766862641626,-217.00814366,0.00025074,7]
[399912730,1766862641636,-434.01628733,0.00025243,7]
[399912731,1766862641646,-1099.0,0.0002598,2]
[399912732,1766862641657,-172.4,0.00026,2]
[399912733,1766862641667,-220.34,0.00026244,30]
[399912734,1766862641677,-159.1,0.00026385,2]
[399912735,1766862641687,-5016.17631292,0.00026599,2]
[399912736,1766862641697,-5000.0,0.00026599,2]
[399912737,1766862641706,-5000.0,0.00026599,2]
[399912738,1766862641717,-359.01,0.00026676,2]
[399912739,1766862641740,-151.0,0.00026944,2]
[399912740,1766862641752,-1099.0,0.00027348,2]
[399912741,1766862641762,-150.0,0.00027396,2]
[399912742,1766862641772,-300.0,0.00027397,2]
[399912743,1766862641782,-500.0,0.00027397,20]
[399912744,1766862641793,-2989.24,0.00027752,2]
[399912745,1766862641803,-1099.0,0.00028715,5]
[399912746,1766862641815,-385.48720513,0.0002882,2]
[399912747,1766862641826,-151.0,0.00028953,2]
[399912748,1766862641836,-238.09,0.00029495,2]
[399912749,1766862641847,-14248.2011865,0.0003,3]
[399912750,1766862641857,-2000.0,0.0003,3]
[399912751,1766862641867,-618.26454,0.0003,2]
[399912752,1766862641877,-1099.0,0.00030151,5]
[399912753,1766862641886,-1075.7526936,0.00030184,3]
[399912754,1766862641897,-220.34,0.0003057,30]
[399912755,1766862641908,-151.0,0.00030947,7]
[399912756,1766862641918,-78598.50426286,0.0003095,2]
[399912757,1766862641929,-151.0,0.00030963,2]
[399912758,1766862641940,-330.41760439,0.0003155,5]
[399912759,1766862641952,-1099.0,0.00031658,5]
[399912760,1766862641962,-754.90851407,0.00032,10]
[399912761,1766862641972,-237.0,0.00032,120]
[399912762,1766862641983,-159.92,0.00032,2]
[399912763,1766862641993,-177.43,0.00032163,2]
[399912764,1766862642003,-4802.59253803,0.000328,2]
[399912765,1766862642013,-512.48254163,0.00032876,120]
[399912766,1766862642026,-500.0,0.00032876,120]
[399912767,1766862642036,-1000.0,0.00032877,10]
[399912768,1766862642046,-326.5174924,0.000329,2]
[399912769,1766862642055,-151.0,0.00032972,3]
[399912770,1766862642065,-51311.67044421,0.00033,2]
[399912771,1766862642075,-10694.0,0.00033,7]
[399912772,1766862642085,-359.01,0.00033165,2]
[399912773,1766862642095,-1447.85,0.000332,2]
[399912774,1766862642105,-174.19,0.000332,14]
[399912775,1766862642115,-350.75,0.000332,14]
[399912776,1766862642125,-1099.0,0.00033241,5]
[399912777,1766862642135,-2393.71447756,0.00033378,2]
[399912778,1766862642145,-238.09,0.00033748,2]
[399912779,1766862642157,-214.15037368,0.000339,7]
[399912780,1766862642167,-165.4969409,0.00033997,14]
[399912781,1766862642176,-50000.0,0.00034,34]
[399912782,1766862642186,-50000.0,0.00034,44]
[399912783,1766862642197,-50000.0,0.00034,24]
[399912784,1766862642208,-250.0,0.00034,7]
[399912785,1766862642218,-868.03257466,0.00034883,7]
[399912786,1766862642228,-220.34,0.00034895,30]
[399912787,1766862642238,-1099.0,0.00034903,5]
[399912788,1766862642248,-151.0,0.00034981,4]
[399912789,1766862642258,-50000.0,0.00035,35]
[399912790,1766862642268,-50000.0,0.00035,45]
[399912791,1766862642278,-50000.0,0.00035,25]
[399912792,1766862642288,-150.0,0.00035,7]
[399912793,1766862642298,-1000.0,0.00035,60]
[399912794,1766862642308,-100195.54669699,0.00035,2]
[399912795,1766862642318,-1351.29396949,0.00035,10]
[399912796,1766862642328,-2293.6,0.00035,14]
[399912797,1766862642339,-151.0,0.00035,31]
[399912798,1766862642349,-151.0,0.00035,31]
[399912799,1766862642359,-151.0,0.00035,31]
[399912800,1766862642369,-151.0,0.00035,31]
[399912801,1766862642379,-151.0,0.00035,31]
[399912802,1766862642388,-151.0,0.00035,31]
[399912803,1766862642398,-151.0,0.00035,31]
[399912804,1766862642408,-151.0,0.00035,31]
[399912805,1766862642418,-151.0,0.00035,31]
[399912806,1766862642428,-151.0,0.00035,31]
[399912807,1766862642439,-151.0,0.00035,31]
[399912808,1766862642449,-151.0,0.00035,31]
[399912809,1766862642459,-151.0,0.00035,31]
[399912810,1766862642469,-151.0,0.00035,31]
[399912811,1766862642478,-151.0,0.00035,31]
[399912812,1766862642488,-151.0,0.00035,31]
[399912813,1766862642498,-157.775104,0.00035,31]
[399912814,1766862642508,-151.0,0.00035,31]
[399912815,1766862642519,-151.0,0.00035,31]
[399912816,1766862642529,-151.0,0.00035,7]
[399912817,1766862642539,-151.678948,0.00035,31]
[399912818,1766862642549,-151.0,0.00035,7]
[399912819,1766862642558,-151.0,0.00035,7]
[399912820,1766862642568,-151.0,0.00035,7]
[399912821,1766862642578,-151.0,0.00035,14]
[399912822,1766862642587,-151.0,0.00035,14]
[399912823,1766862642597,-151.0,0.00035,7]
[399912824,1766862642607,-151.0,0.00035,7]
[399912825,1766862642616,-151.0,0.00035,14]
[399912827,1766862642626,-151.0,0.00035,7]
[399912829,1766862642636,-151.0,0.00035,14]
[399912830,1766862642645,-151.0,0.00035,7]
[399912832,1766862642655,-298.038457,0.00035,14]
[399912834,1766862642664,-151.0,0.00035,2]
[399912836,1766862642674,-151.0,0.00035,2]
[399912838,1766862642683,-151.0,0.00035,31]
[399912839,1766862642693,-151.0,0.00035,31]
[399912840,1766862642703,-151.0,0.00035,2]
[399912841,1766862642712,-151.0,0.00035,2]
[399912842,1766862642722,-151.0,0.00035,31]
[399912843,1766862642731,-151.0,0.00035,31]
[399912844,1766862642741,-151.0,0.00035,2]
[399912845,1766862642751,-151.0,0.00035,2]
[399912846,1766862642761,-151.0,0.00035,31]
[399912847,1766862642772,-151.0,0.00035,31]
[399912848,1766862642782,-151.0,0.00035,31]
[399912849,1766862642791,-151.0,0.00035,31]
[399912850,1766862642801,-151.0,0.00035,31]
[399912851,1766862642811,-151.0,0.00035,31]
[399912852,1766862642821,-151.0,0.00035,31]
[399912853,1766862642831,-151.0,0.00035,31]
[399912854,1766862642841,-151.0,0.00035,31]
[399912855,1766862642851,-151.0,0.00035,31]
[399912856,1766862642861,-151.0,0.00035,31]
[399912857,1766862642871,-151.0,0.00035,31]
[399912858,1766862642881,-151.0,0.00035,31]
[399912859,1766862642890,-151.0,0.00035,31]
[399912860,1766862642900,-151.0,0.00035,31]
[399912861,1766862642910,-151.293371,0.00035,31]
[399912862,1766862642919,-151.0,0.00035,30]
[399912863,1766862642929,-151.0,0.00035,30]
[399912864,1766862642938,-499.646756,0.00035,31]
[399912865,1766862642948,-499.646756,0.00035,31]
[399912866,1766862642958,-499.646756,0.00035,31]
[399912867,1766862642969,-499.646756,0.00035,31]
[399912868,1766862642979,-499.646756,0.00035,31]
[399912869,1766862642989,-499.646756,0.00035,31]
[399912870,1766862642999,-499.646756,0.00035,31]
[399912871,1766862643009,-499.646756,0.00035,31]
[399912872,1766862643018,-151.0,0.00035,31]
[399912873,1766862643028,-151.0,0.00035,31]
[399912874,1766862643037,-151.0,0.00035,31]
[399912875,1766862643047,-642.220405,0.00035,31]
[399912876,1766862643056,-642.220405,0.00035,31]
[399912877,1766862643065,-151.0,0.00035,31]
[399912878,1766862643076,-642.220405,0.00035,31]
[399912879,1766862643086,-642.220405,0.00035,31]
[399912880,1766862643095,-151.0,0.00035,31]
[399912881,1766862643105,-151.0,0.00035,31]
[399912882,1766862643115,-151.0,0.00035,31]
[399912883,1766862643125,-642.220405,0.00035,31]
[399912884,1766862643134,-642.220405,0.00035,31]
[399912885,1766862643144,-642.220405,0.00035,31]
[399912886,1766862643153,-642.220405,0.00035,31]
[399912887,1766862643164,-2221.595333,0.00035,31]
[399912888,1766862643173,-2221.595333,0.00035,31]
[399912889,1766862643183,-2221.595333,0.00035,31]
[399912890,1766862643192,-2221.595333,0.00035,31]
[399912891,1766862643202,-500547.78515548,0.00035,3]
[399912892,1766862643211,-250.0,0.00035,7]
[399912893,1766862643220,-2293.6,0.000351,14]
[399912894,1766862643230,-1000.0,0.0003515,60]
[399912895,1766862643240,-1447.85,0.000356,2]
[399912896,1766862643249,-350.75,0.000356,14]
[399912897,1766862643258,-567.42402794,0.00035615,31]
[399912898,1766862643267,-500.0,0.00035615,31]
[399912899,1766862643277,-1000.0,0.00035615,31]
[399912900,1766862643287,-553.64373807,0.00035615,31]
[399912901,1766862643296,-500.0,0.00035615,31]
[399912902,1766862643305,-250.0,0.00035615,31]
[399912903,1766862643314,-250.0,0.00035615,31]
[399912904,1766862643324,-151.0,0.00035615,31]
[399912905,1766862643333,-500.0,0.00035615,31]
[399912906,1766862643342,-500.0,0.00035615,31]
[399912907,1766862643351,-1000.0,0.00035615,31]
[399912908,1766862643360,-250.0,0.00035615,31]
[399912909,1766862643369,-500.0,0.00035615,31]
[399912910,1766862643378,-1000.0,0.00035616,2]
[399912911,1766862643387,-796.361637,0.00035616,9]
[399912912,1766862643397,-615.087747,0.00035616,9]
[399912913,1766862643406,-397.523951,0.00035616,9]
[399912914,1766862643415,-500.0,0.00035616,9]
[399912915,1766862643425,-565.19193654,0.00035616,9]
[399912916,1766862643434,-160.97997923,0.00035616,9]
[399912917,1766862643444,-400.0,0.00035616,9]
[399912918,1766862643453,-332.77793989,0.00035616,9]
[399912919,1766862643463,-400.0,0.00035616,9]
[399912920,1766862643472,-500.0,0.00035616,9]
[399912921,1766862643481,-406.41786338,0.00035616,9]
[399912922,1766862643491,-402.60236725,0.00035616,9]
[399912923,1766862643500,-201.14939385,0.00035616,9]
[399912924,1766862643510,-500.0,0.00035616,9]
[399912925,1766862643519,-628.0844951,0.00035616,9]
[399912926,1766862643529,-400.0,0.00035616,9]
[399912927,1766862643540,-500.0,0.00035616,9]
[399912928,1766862643549,-500.0,0.00035616,9]
[399912929,1766862643560,-420.16530966,0.00035616,9]
[399912930,1766862643569,-228.48422086,0.00035616,9]
[399912931,1766862643579,-400.0,0.00035616,9]
[399912932,1766862643588,-500.0,0.00035616,9]
[399912933,1766862643598,-500.0,0.00035616,9]
[399912934,1766862643608,-408.34980659,0.00035616,9]
[399912935,1766862643618,-433.53641214,0.00035616,9]
[399912936,1766862643628,-400.0,0.00035616,9]
[399912937,1766862643637,-500.0,0.00035616,9]
[399912938,1766862643646,-403.71409522,0.00035616,9]
[399912939,1766862643655,-500.0,0.00035616,9]
[399912940,1766862643665,-413.88590239,0.00035616,9]
[399912941,1766862643675,-413.4643342,0.00035616,9]
[399912942,1766862643684,-500.0,0.00035616,9]
[399912943,1766862643693,-412.67,0.00035616,9]
[399912944,1766862643703,-400.0,0.00035616,9]
[399912945,1766862643713,-500.0,0.00035616,9]
[399912946,1766862643722,-619.20782507,0.00035616,9]
[399912947,1766862643732,-500.0,0.00035616,9]
[399912948,1766862643742,-500.0,0.00035616,9]
[399912949,1766862643751,-400.0,0.00035616,9]
[399912950,1766862643761,-500.0,0.00035616,9]
[399912951,1766862643770,-500.0,0.00035616,9]
[399912952,1766862643780,-500.0,0.00035616,9]
[399912953,1766862643790,-500.0,0.00035616,9]
[399912954,1766862643799,-500.0,0.00035616,9]
[399912955,1766862643809,-622.09,0.00035616,9]
[399912956,1766862643819,-400.0,0.00035616,9]
[399912957,1766862643828,-500.0,0.00035616,9]
[399912958,1766862643838,-500.0,0.00035616,9]
[399912959,1766862643847,-421.01026901,0.00035616,9]
[399912960,1766862643857,-409.41325459,0.00035616,9]
[399912961,1766862643866,-500.0,0.00035616,9]
[399912962,1766862643877,-500.0,0.00035616,9]
[399912963,1766862643887,-500.0,0.00035616,9]
[399912964,1766862643897,-500.0,0.00035616,9]
[399912965,1766862643908,-500.0,0.00035616,9]
[399912966,1766862643918,-400.0,0.00035616,9]
[399912967,1766862643928,-500.0,0.00035616,9]
[399912968,1766862643938,-500.0,0.00035616,9]
[399912969,1766862643952,-407.82646751,0.00035616,9]
[399912970,1766862643962,-500.0,0.00035616,9]
[399912971,1766862643972,-500.0,0.00035616,9]
[399912972,1766862643981,-500.0,0.00035616,9]
[399912973,1766862643992,-500.0,0.00035616,9]
[399912974,1766862644002,-500.0,0.00035616,9]
[399912975,1766862644011,-500.0,0.00035616,9]
[399912976,1766862644024,-500.0,0.00035616,9]
[399912977,1766862644034,-500.0,0.00035616,9]
[399912978,1766862644044,-413.19240302,0.00035616,9]
[399912979,1766862644053,-500.0,0.00035616,9]
[399912980,1766862644063,-630.77881152,0.00035616,9]
[399912981,1766862644073,-407.61428633,0.00035616,9]